fUST/lending_fUST_20241210
["ID","MTS","AMOUNT","RATE_DAILY","PERIOD"]
[344776054,1733785840081,-500.0,0.00029863,7]
[344776055,1733785840090,-500.0,0.00029863,7]
[344776056,1733785840100,-500.0,0.00029863,7]
[344776057,1733785840110,-502.74124762,0.00029863,7]
[344776058,1733785840120,-500.0,0.00029863,7]
[344776060,1733785840130,-500.0,0.00029863,7]
[344776062,1733785840139,-502.03831684,0.00029863,7]
[344776064,1733785840148,-503.04525892,0.00029863,7]
[344776065,1733785840158,-502.86629378,0.00029863,7]
[344776067,1733785840168,-500.0,0.00029863,7]
[344776069,1733785840177,-502.15865501,0.00029863,7]
[344776071,1733785840187,-500.62753369,0.00029863,7]
[344776072,1733785840196,-491.59001812,0.00029863,7]
[344776073,1733785840205,-240.09226681,0.00029863,7]
[344776085,1733785840569,-260.7857413,0.00029863,7]
[344776086,1733785840579,-501.65398698,0.00029863,7]
[344776087,1733785840588,-501.06230774,0.00029863,7]
[344776088,1733785840598,-9998.004943,0.00029863,2]
[344776089,1733785840607,-242.48272404,0.00029863,7]
[344776090,1733785840617,-500.0,0.00029863,7]
[344776091,1733785840627,-502.81227787,0.00029863,7]
[344776092,1733785840636,-500.0,0.00029863,7]
[344776093,1733785840646,-500.0,0.00029863,7]
[344776094,1733785840655,-234.30693052,0.00029863,7]
[344776095,1733785840665,-506.7914539,0.00029863,7]
[344776096,1733785840674,-500.0,0.00029863,7]
[344776097,1733785840683,-13.62083012,0.00029863,7]
[344776098,1733785840696,-136.8998572,0.00029863,7]
[344776099,1733785840705,-500.0,0.00029863,7]
[344776100,1733785840715,-500.0,0.00029863,7]
[344776101,1733785840724,-514.43232767,0.00029863,7]
[344776102,1733785840734,-500.0,0.00029863,7]
[344776103,1733785840743,-500.0,0.00029863,7]
[344776104,1733785840755,-500.0,0.00029863,7]
[344776105,1733785840764,-531.15683678,0.00029863,7]
[344776106,1733785840774,-500.0,0.00029863,7]
[344776107,1733785840783,-62.51097835,0.00029863,7]
[344776157,1733785843690,-437.48902165,0.00029863,7]
[344776159,1733785843700,-500.0,0.00029863,7]
[344776161,1733785843709,-567.17,0.00029863,7]
[344776163,1733785843719,-500.0,0.00029863,7]
[344776165,1733785843728,-500.0,0.00029863,7]
[344776167,1733785843738,-500.0,0.00029863,7]
[344776169,1733785843747,-500.0,0.00029863,7]
[344776171,1733785843759,-500.0,0.00029863,7]
[344776173,1733785843768,-500.0,0.00029863,7]
[344776175,1733785843778,-366.23434235,0.00029863,7]
[344776177,1733785843787,-503.03254087,0.00029863,7]
[344776179,1733785843796,-500.0,0.00029863,7]
[344776181,1733785843805,-500.0,0.00029863,7]
[344776182,1733785843815,-500.0,0.00029863,7]
[344776184,1733785843826,-500.0,0.00029863,7]
[344776186,1733785843836,-300.53,0.00029863,7]
[344776197,1733785843936,-500.0,0.00029863,7]
[344776200,1733785843949,-500.0,0.00029863,7]
[344776201,1733785843958,-590.95,0.00029863,7]
[344776205,1733785843968,-500.0,0.00029863,7]
[344776208,1733785843978,-500.0,0.00029863,7]
[344776210,1733785843987,-529.86,0.00029863,7]
[344776213,1733785843997,-337.73409512,0.00029863,7]
[344776219,1733785844084,-162.26590488,0.00029863,7]
[344776221,1733785844094,-500.0,0.00029863,7]
[344776224,1733785844104,-500.0,0.00029863,7]
[344776225,1733785844113,-500.0,0.00029863,7]
[344776227,1733785844123,-500.0,0.00029863,7]
[344776229,1733785844133,-500.0,0.00029863,7]
[344776231,1733785844142,-500.0,0.00029863,7]
[344776233,1733785844152,-500.0,0.00029863,7]
[344776235,1733785844162,-500.0,0.00029863,7]
[344776237,1733785844171,-195.66057408,0.00029863,7]
[344776239,1733785844180,-117.27351984,0.00029863,7]
[344776360,1733785970629,2000.0,0.0003002,30]
[344776361,1733785971136,2000.0,0.0003002,30]
[344776362,1733785971740,804.2,0.0003002,30]
[344776365,1733786220835,164.123051,0.00013973,2]
[344776367,1733786564727,1051.8,0.00030025,30]
[344776390,1733786909293,13625.58225314,0.0001888,2]
[344776392,1733786921213,4467.450042,0.0001999,2]
[344776437,1733787032718,-164.123051,0.00020447,2]
[344776439,1733787032728,-1736.8617151,0.00021,5]
[344776441,1733787032741,-2178.03360427,0.00021,5]
[344776443,1733787032751,-817.0821349,0.00022,3]
[344776445,1733787032761,-1578.404119,0.00023,2]
[344776447,1733787032771,-587.1690788,0.00023147,2]
[344776449,1733787032782,-300.0,0.00024499,2]
[344776451,1733787032793,-300.0,0.00024499,2]
[344776453,1733787032803,-9252.02329257,0.000245,2]
[344776456,1733787032817,-844.39315065,0.000245,2]
[344776464,1733787035836,-41733.09202748,0.000245,2]
[344776494,1733787038584,-2164.07772047,0.000245,2]
[344776496,1733787038594,-1308.62408201,0.00024589,5]
[344776498,1733787038603,-409.41947777,0.00024989,2]
[344776500,1733787038613,-266.42691702,0.00024989,2]
[344776502,1733787038623,-500.0,0.00024989,2]
[344776504,1733787038632,-15167.93938197,0.0002499,5]
[344776506,1733787038644,-60546.11095897,0.0002499,5]
[344776508,1733787038654,-10438.10516872,0.00025,7]
[344776510,1733787038666,-4873.00882134,0.00025,7]
[344776517,1733787038727,-1418.44299868,0.00025,7]
[344776712,1733787040800,-90.92906175,0.00025,7]
[344776714,1733787040810,-5029.85559742,0.00025,2]
[344776716,1733787040820,-9684.0,0.00025,2]
[344776718,1733787040829,-367.82491185,0.00025,2]
[344776720,1733787040839,-9895.57636046,0.00026,10]
[344776722,1733787040849,-4377.58231579,0.00026,7]
[344776724,1733787040858,-420.0,0.00026554,2]
[344776726,1733787040868,-164.123051,0.00026921,2]
[344776728,1733787040877,-206.0,0.00026949,2]
[344776742,1733787040978,-9097.9866655,0.00027957,2]
[344776745,1733787041019,-288.5193536,0.00027972,2]
[344776747,1733787041028,-186.722046,0.00028019,2]
[344776749,1733787041039,-755.137,0.00028412,2]
[344776751,1733787041049,-2370.0,0.00028412,2]
[344776753,1733787041059,-314.148,0.000285,2]
[344776755,1733787041068,-587.0,0.00028782,2]
[344776757,1733787041078,-152.894225,0.00029205,30]
[344776759,1733787041089,-350.0669185,0.00029311,30]
[344776761,1733787041099,-36180.08064222,0.000297,2]
[344776763,1733787041108,-183.25393121,0.00029702,2]
[344776765,1733787041118,-183.2539312,0.00029734,2]
[344776767,1733787041127,-152.50834152,0.00029762,2]
[344776769,1733787041137,-152.50834152,0.00029762,2]
[344776771,1733787041148,-152.50834152,0.00029763,2]
[344776773,1733787041158,-152.50834152,0.00029763,2]
[344776775,1733787041167,-183.2539312,0.00029766,2]
[344776777,1733787041177,-183.2539312,0.00029798,2]
[344776779,1733787041187,-262.11784527,0.00029801,2]
[344776781,1733787041198,-500.0,0.00029801,2]
[344776783,1733787041215,-500.0,0.00029801,7]
[344776785,1733787041227,-21762.08241179,0.00029802,2]
[344776787,1733787041239,-37518.5501804,0.00029802,2]
[344776789,1733787041251,-468.81912575,0.00029802,2]
[344777062,1733787044084,-5800.22181851,0.00029802,2]
[344777064,1733787044096,-1257.92706627,0.00029802,2]
[344777357,1733787046859,-55669.31259415,0.00029802,2]
[344777360,1733787046871,-11094.83714466,0.00029802,2]
[344777374,1733787047003,-3719.915,0.00029802,2]
[344781526,1733787092071,3106.3962044,0.00025999,60]
[344783691,1733787232226,164.123051,0.00013973,2]
[344783694,1733787743850,8113.0,0.00025,60]
[344790804,1733788233224,-2187.66439484,0.00021561,2]
[344790806,1733788233234,-164.123051,0.00021661,2]
[344790807,1733788233244,-186.722046,0.00024092,2]
[344790808,1733788233254,-1491.0472723,0.00024092,2]
[344790809,1733788233268,-300.0,0.00024957,2]
[344790811,1733788233278,-300.0,0.00024957,2]
[344790812,1733788233288,-18245.4698957,0.00024959,2]
[344790813,1733788233298,-4645.0,0.00025,2]
[344790814,1733788233310,-54181.35477896,0.00025205,3]
[344790815,1733788233321,-183.2539312,0.00026938,2]
[344790817,1733788233331,-5072.69513204,0.00027038,2]
[344790818,1733788233343,-989.40161603,0.00027038,2]
[344790819,1733788233353,-420.0,0.00027038,2]
[344790820,1733788233363,-500.0,0.00027397,7]
[344790821,1733788233372,-193.139642,0.00027781,2]
[344790822,1733788233382,-183.2539312,0.00027933,2]
[344790823,1733788233392,-307.563,0.0002837,2]
[344790825,1733788233402,-500.0,0.00028767,9]
[344790826,1733788233412,-150.0,0.00028892,2]
[344790827,1733788233422,-2370.0,0.00028892,2]
[344790828,1733788233432,-183.2539312,0.00028927,2]
[344790830,1733788233443,-442.5192284,0.00029205,30]
[344790831,1733788233453,-386.0,0.00029293,2]
[344790832,1733788233471,-164.123051,0.00029349,2]
[344790833,1733788233481,-183.73187831,0.00029762,2]
[344790834,1733788233491,-533.48249169,0.00029801,2]
[344790835,1733788233501,-12117.7123171,0.00029802,2]
[344790933,1733788238864,-400.0,0.00027397,60]
[344790934,1733788238874,-5452.59062266,0.00029802,2]
[344790935,1733788239013,-6500.64258978,0.00029802,2]
[344790961,1733788240949,-250.0,0.00028892,2]
[344790962,1733788240959,-500.0,0.00029801,2]
[344790963,1733788240969,-156399.03154081,0.00029802,2]
[344790964,1733788240979,-164.0922313,0.00029862,10]
[344790965,1733788240988,-20371.57017746,0.00029863,2]
[344791021,1733788244411,-180.932,0.00028892,2]
[344791023,1733788244421,-76.57094793,0.00029863,2]
[344791083,1733788246956,-950.38143573,0.000297,7]
[344791084,1733788246966,-4059.42739631,0.00029863,2]
[344794150,1733788428211,167.079218,0.00013973,2]
[344794470,1733788601547,207.39489595,0.0002,2]
[344794628,1733788968455,802.8,0.00030026,30]
[344794674,1733789431846,-211.96848882,0.00020007,2]
[344794676,1733789431855,-166.0,0.00022,2]
[344794678,1733789431864,-167.079218,0.00022759,2]
[344794680,1733789431873,-166.0,0.00023014,2]
[344794682,1733789431882,-379.44853985,0.00023717,11]
[344794685,1733789431900,-55.86715295,0.00023717,11]
[344794687,1733789431912,-193.139642,0.0002375,2]
[344794689,1733789431921,-835.99320505,0.00025,2]
[344795248,1733789437833,-724.50210689,0.00025,2]
[344795251,1733789437846,-1439.50468806,0.00025,2]
[344795253,1733789437856,-5000.0,0.00025007,7]
[344795255,1733789437868,-300.0,0.00025008,2]
[344795257,1733789437878,-300.0,0.00025009,2]
[344795259,1733789437886,-473.77162484,0.0002501,2]
[344795261,1733789437898,-505.4234493,0.0002501,2]
[344795266,1733789437942,-2020.80492586,0.0002501,2]
[344795268,1733789437951,-568.8492569,0.0002502,2]
[344795271,1733789437963,-2431.1507431,0.0002502,2]
[344795273,1733789437973,-1272.74925687,0.0002503,2]
[344795275,1733789437988,-1630.87326155,0.0002503,2]
[344795277,1733789438000,-96.37748158,0.0002503,2]
[344795279,1733789438009,-3000.0,0.0002504,2]
[344795281,1733789438018,-12536.03,0.0002504,5]
[344795283,1733789438027,-3000.0,0.0002505,2]
[344795285,1733789438036,-3320.341273,0.0002506,2]
[344795287,1733789438045,-1002.7,0.00026,31]
[344795289,1733789438056,-191.44864116,0.00026,12]
[344795291,1733789438065,-14506.54293576,0.00026305,2]
[344795654,1733789443096,-8100.48712816,0.00026305,2]
[344795656,1733789443107,-1433.507,0.00026305,2]
[344795673,1733789470672,162.096866,0.00013973,2]
[344795877,1733789684925,50000.0,0.0003003,30]
[344795882,1733790347375,259.34,0.0002,2]
[344795887,1733790468809,162.096866,0.00013973,2]
[344795888,1733790474900,259.27,0.0002,2]
[344796189,1733790634822,-1829.84325566,0.00020377,2]
[344796190,1733790634832,-300.0,0.00021999,2]
[344796191,1733790634841,-300.0,0.00021999,2]
[344796192,1733790634851,-9183.43239301,0.00022,2]
[344796193,1733790634860,-162.0,0.00022,2]
[344796194,1733790634870,-24880.0,0.00022609,2]
[344796195,1733790634879,-463.24304236,0.00022659,2]
[344796196,1733790634889,-162.096866,0.00022759,2]
[344796197,1733790634899,-163.0,0.00023014,2]
[344796198,1733790634908,-193.8610219,0.00023273,2]
[344796199,1733790634918,-463.24304231,0.00023698,2]
[344796200,1733790634931,-420.0,0.00023906,2]
[344796201,1733790634942,-420.0,0.00024199,2]
[344796202,1733790634951,-31859.14767392,0.000245,2]
[344796254,1733790638104,-26855.54382396,0.000245,2]
[344796257,1733790638114,-1308.62408201,0.00024589,5]
[344796260,1733790638123,-152.0,0.00024703,2]
[344796263,1733790638133,-463.24304231,0.00024736,2]
[344796266,1733790638143,-409.41947777,0.00024989,2]
[344796269,1733790638152,-500.0,0.00024989,2]
[344796272,1733790638162,-587.72482807,0.00024989,2]
[344796275,1733790638172,-276.23506074,0.00024989,2]
[344796278,1733790638185,-500.0,0.00024989,2]
[344796281,1733790638194,-500.0,0.00024989,2]
[344796284,1733790638203,-261.21144719,0.00024989,2]
[344796287,1733790638212,-500.0,0.00024989,2]
[344796289,1733790638222,-500.0,0.00024989,2]
[344796291,1733790638231,-500.0,0.00024989,2]
[344796293,1733790638240,-500.0,0.00024989,2]
[344796295,1733790638249,-500.0,0.00024989,2]
[344796297,1733790638258,-500.0,0.00024989,2]
[344796299,1733790638267,-500.0,0.00024989,2]
[344796301,1733790638276,-500.0,0.00024989,2]
[344796303,1733790638285,-500.0,0.00024989,2]
[344796305,1733790638294,-70890.61413634,0.0002499,2]
[344796307,1733790638303,-251.14980847,0.0002499,2]
[344796309,1733790638313,-12025.77524049,0.0002499,5]
[344796492,1733790643120,-5557.579975,0.0002499,5]
[344796510,1733791331527,28348.76061141,0.00030033,30]
[344796513,1733791586396,300.0,0.0002,2]
[344796514,1733791601771,300.0,0.0002,3]
[344796521,1733791746992,90583.16893335,0.0002,2]
[344796522,1733791788913,162.096866,0.00013973,2]
[344796546,1733791832342,-300.0,0.00019999,2]
[344796548,1733791832351,-300.0,0.00019999,2]
[344796550,1733791832361,-33938.64720793,0.0002,2]
[344796948,1733791838176,-498.23489397,0.0002,2]
[344797535,1733791843699,-1225.28999002,0.0002,2]
[344797793,1733791846457,-1290.89996196,0.0002,2]
[344797795,1733791846470,-6447.16311147,0.0002,2]
[344797797,1733791846480,-289.52690147,0.00021677,2]
[344797799,1733791846492,-420.0,0.00021777,2]
[344797802,1733791846505,-420.0,0.00021999,2]
[344797804,1733791846514,-289.52690144,0.00022856,2]
[344797806,1733791846524,-153.2385,0.00023172,2]
[344797807,1733791846534,-587.0,0.00023712,2]
[344797809,1733791846543,-169.599393,0.00023793,2]
[344797811,1733791846553,-258.732685,0.00023963,2]
[344797813,1733791846563,-1913.1720731,0.00023965,2]
[344797815,1733791846572,-350.8232584,0.00023995,2]
[344797817,1733791846581,-198.053928,0.00023995,2]
[344797819,1733791846590,-289.52690144,0.00024036,2]
[344797821,1733791846600,-587.0,0.00024199,2]
[344797823,1733791846609,-162.096866,0.00024224,2]
[344797825,1733791846618,-8182.17513498,0.0002427,2]
[344797827,1733791846628,-8182.17513498,0.00024587,2]
[344797829,1733791846637,-8182.175135,0.00024725,2]
[344797831,1733791846647,-198.053928,0.00024883,2]
[344797833,1733791846656,-215.0,0.000249,2]
[344797835,1733791846665,-18933.04443478,0.0002499,5]
[344801622,1733792834686,162.096866,0.00013973,2]
[344801669,1733793032422,-300.0,0.00023962,2]
[344801672,1733793032433,-300.0,0.00023962,2]
[344801674,1733793032443,-198.053928,0.00023963,2]
[344801676,1733793032453,-258.91308134,0.00023963,2]
[344801678,1733793032465,-606.84252089,0.00023963,2]
[344801680,1733793032476,-10261.83857847,0.00023963,2]
[344801844,1733793038424,-466.99430419,0.00023963,2]
[344801845,1733793038508,-695.00600106,0.00023963,2]
[344802155,1733793893341,162.096866,0.00013973,2]
[344802184,1733794232729,-882.01449469,0.000199,2]
[344802186,1733794232738,-175.78168779,0.000199,2]
[344802188,1733794232748,-300.0,0.00019989,2]
[344802190,1733794232758,-300.0,0.00019989,2]
[344802192,1733794232767,-82400.22007707,0.0001999,2]
[344802198,1733794232890,-1638.97718917,0.0001999,2]
[344802254,1733794239047,-33110.10363324,0.0001999,2]
[344802257,1733794239059,-753.5153969,0.0001999,2]
[344802259,1733794239071,-609.31787327,0.0001999,2]
[344802261,1733794239080,-856.23211338,0.0002,2]
[344802263,1733794239092,-113.17466432,0.0002,2]
[344802265,1733794239102,-882.01449464,0.00021332,2]
[344802267,1733794239111,-420.0,0.00021766,2]
[344802269,1733794239121,-420.0,0.00021988,2]
[344802271,1733794239130,-178.999388,0.00022543,2]
[344802273,1733794239140,-381.656581,0.00022725,2]
[344802275,1733794239149,-882.01449464,0.00022765,2]
[344802277,1733794239160,-1225.0526919,0.00023121,2]
[344802279,1733794239170,-500.0,0.00023562,2]
[344802281,1733794239179,-500.0,0.00023562,2]
[344802283,1733794239189,-211.48099128,0.00023562,2]
[344802285,1733794239199,-500.0,0.00023562,2]
[344802287,1733794239209,-434.58370251,0.00023562,2]
[344802290,1733794239229,-65.41629749,0.00023562,2]
[344802292,1733794239239,-500.0,0.00023562,2]
[344802295,1733794239248,-220.95270197,0.00023562,2]
[344803029,1733794246749,-279.04729803,0.00023562,2]
[344803031,1733794246759,-565.40759941,0.00023562,2]
[344803033,1733794246770,-500.0,0.00023562,2]
[344803035,1733794246780,-500.0,0.00023562,2]
[344803037,1733794246789,-500.0,0.00023562,2]
[344803039,1733794246799,-500.0,0.00023562,2]
[344803041,1733794246809,-500.0,0.00023562,2]
[344803043,1733794246819,-500.0,0.00023562,2]
[344803045,1733794246828,-500.0,0.00023562,2]
[344803047,1733794246838,-500.0,0.00023562,2]
[344803049,1733794246848,-500.0,0.00023562,2]
[344803051,1733794246859,-500.0,0.00023562,2]
[344803053,1733794246869,-500.0,0.00023562,2]
[344803055,1733794246879,-500.0,0.00023562,2]
[344803057,1733794246889,-500.0,0.00023562,2]
[344803059,1733794246899,-500.0,0.00023562,2]
[344803061,1733794246908,-500.0,0.00023562,2]
[344803063,1733794246918,-500.0,0.00023562,2]
[344803065,1733794246927,-500.0,0.00023562,2]
[344803067,1733794246937,-500.0,0.00023562,2]
[344803069,1733794246947,-500.0,0.00023562,2]
[344803071,1733794246957,-500.0,0.00023562,2]
[344803073,1733794246967,-500.0,0.00023562,2]
[344803075,1733794246977,-268.13979434,0.00023562,2]
[344803077,1733794246987,-5187.40520822,0.00023563,2]
[344805191,1733794370831,150.0,0.00030026,30]
[344805204,1733794801028,217.3133189,0.00030019,30]
[344805206,1733794843690,162.096866,0.00013973,2]
[344805207,1733795355111,1758.59969377,0.0003002,120]
[344805217,1733795431929,-904.425,0.00022704,2]
[344805234,1733795432139,-772.54750635,0.00022704,2]
[344805236,1733795432149,-162.97286763,0.00022804,2]
[344805237,1733795432158,-300.0,0.00022904,2]
[344805238,1733795432168,-300.0,0.00022904,2]
[344805239,1733795432177,-7300.46825492,0.00022905,2]
[344805241,1733795432188,-421.49265646,0.00022905,2]
[344805277,1733795438327,-6480.00000045,0.00022905,2]
[344805776,1733795443601,-8015.40516874,0.00022905,2]
[344805778,1733795443615,-2682.63391943,0.00022905,2]
[344805780,1733795443625,-180.4803606,0.00023078,2]
[344805783,1733795443637,-318.527073,0.00023138,2]
[344805786,1733795443648,-195.60405147,0.00023188,2]
[344805789,1733795443659,-400.0,0.00023288,2]
[344805793,1733795443670,-4835.70421703,0.00023524,2]
[344805795,1733795443680,-357.9021884,0.00023542,2]
[344805799,1733795443692,-351.1524441,0.00023542,2]
[344805801,1733795443704,-351.1524441,0.00023542,2]
[344805804,1733795443715,-351.1524441,0.00023542,2]
[344805808,1733795443725,-556.26734703,0.000236,2]
[344805811,1733795443735,-629.0654872,0.000237,2]
[344805814,1733795443745,-753.315,0.0002374,2]
[344805816,1733795443756,-2561.73604715,0.00023962,6]
[344805819,1733795443767,-400.0,0.00024149,2]
[344805830,1733795443874,-442.5192284,0.00024274,2]
[344805832,1733795443887,-419.00003,0.000245,2]
[344805835,1733795443897,-351.1524441,0.00024501,2]
[344805837,1733795443907,-350.3382999,0.00024501,2]
[344805838,1733795443917,-153.0,0.00024501,2]
[344805840,1733795443929,-213.45565,0.00024501,2]
[344805842,1733795443938,-153.0,0.00024501,2]
[344805844,1733795443947,-213.45565,0.00024501,2]
[344805846,1733795443956,-305.78845,0.00024501,2]
[344805848,1733795443965,-153.0,0.00024501,2]
[344805850,1733795443974,-213.45565,0.00024501,2]
[344805852,1733795443984,-308.9495186,0.00024501,2]
[344805854,1733795443993,-217.8732859,0.00024501,2]
[344805856,1733795444005,-153.7545341,0.00024501,2]
[344805858,1733795444015,-305.78845,0.00024501,2]
[344805860,1733795444025,-153.0,0.00024501,2]
[344805862,1733795444035,-212.9471145,0.00024501,2]
[344805864,1733795444044,-305.78845,0.00024501,2]
[344805866,1733795444054,-556.26734703,0.00024503,2]
[344805868,1733795444063,-181.2470098,0.00024508,2]
[344805870,1733795444072,-170.88069077,0.00024616,7]
[344805871,1733795444082,-420.0,0.00024866,2]
[344805872,1733795444093,-842.42806176,0.000249,2]
[344805873,1733795444102,-501.57064666,0.00024973,2]
[344805874,1733795444112,-500.77229507,0.00024973,2]
[344805875,1733795444122,-500.0,0.00024973,2]
[344805877,1733795444131,-500.73423956,0.00024973,2]
[344805879,1733795444140,-500.0,0.00024973,2]
[344805881,1733795444150,-265.32833993,0.00024973,2]
[344805883,1733795444159,-500.0,0.00024973,2]
[344805885,1733795444168,-504.44565919,0.00024973,2]
[344805887,1733795444178,-500.74556636,0.00024973,2]
[344805889,1733795444187,-500.0,0.00024973,2]
[344805891,1733795444198,-358.11184919,0.00024973,2]
[344805893,1733795444207,-503.51567958,0.00024973,2]
[344805895,1733795444216,-163.46059655,0.00024973,2]
[344805898,1733795444226,-227.16256999,0.00024973,2]
[344805900,1733795444235,-502.10062141,0.00024973,2]
[344805902,1733795444245,-151.6423816,0.00024973,2]
[344805904,1733795444255,-22949.94361876,0.0002499,5]
[344805906,1733795444264,-151.0,0.0002499,7]
[344805908,1733795444273,-172.804376,0.0002499,7]
[344805910,1733795444282,-172.804376,0.0002499,7]
[344805912,1733795444291,-151.0,0.00024997,7]
[344805914,1733795444300,-172.804376,0.00024997,7]
[344805916,1733795444309,-172.804376,0.00024997,7]
[344805918,1733795444318,-248.146568,0.00024997,7]
[344805920,1733795444327,-248.146568,0.00024997,7]
[344805922,1733795444339,-268.264586,0.00024997,7]
[344805924,1733795444350,-268.264586,0.00024997,7]
[344805926,1733795444359,-462.797202,0.00024997,7]
[344805928,1733795444368,-462.797202,0.00024997,7]
[344805930,1733795444377,-151.0,0.00024997,7]
[344805932,1733795444387,-151.0,0.00024997,7]
[344805933,1733795444396,-151.0,0.00024997,7]
[344805936,1733795444407,-151.374442,0.00024997,7]
[344805937,1733795444416,-151.0,0.00024997,7]
[344805940,1733795444425,-792.499866,0.00024997,7]
[344805942,1733795444435,-151.0,0.00024997,7]
[344805944,1733795444444,-151.0,0.00024997,7]
[344805946,1733795444453,-151.0,0.00024997,7]
[344805947,1733795444463,-151.0,0.00024997,7]
[344805949,1733795444472,-977.661987,0.00024997,7]
[344805952,1733795444481,-977.661987,0.00024997,7]
[344805954,1733795444492,-151.0,0.00024997,7]
[344805956,1733795444501,-263.355138,0.00024997,7]
[344805958,1733795444511,-263.355138,0.00024997,7]
[344805960,1733795444520,-154.333685,0.00024997,7]
[344805962,1733795444530,-151.0,0.00024997,7]
[344805964,1733795444540,-151.0,0.00024997,7]
[344805966,1733795444550,-151.0,0.00024997,7]
[344805968,1733795444559,-151.0,0.00024997,7]
[344805970,1733795444570,-151.0,0.00024997,7]
[344805972,1733795444579,-1114.944294,0.00024997,7]
[344805974,1733795444591,-151.0,0.00024997,7]
[344805976,1733795444600,-1114.944294,0.00024997,7]
[344805978,1733795444610,-664.994436,0.00024997,7]
[344805980,1733795444619,-151.0,0.00024997,7]
[344805982,1733795444629,-664.994436,0.00024997,7]
[344805984,1733795444638,-135.86435144,0.00024997,7]
[344805986,1733795444652,-15.13564856,0.00024997,7]
[344805988,1733795444662,-382.72309934,0.00024997,7]
[344806934,1733795565924,2000.0,0.0003002,30]
[344806935,1733795566569,1860.599999,0.0003002,30]
[344806937,1733795851021,162.096866,0.00013973,2]
[344806938,1733796370379,186.5811317,0.00030019,30]
[344806952,1733796632328,-175.0,0.00022,2]
[344806954,1733796632345,-175.0,0.00022192,2]
[344806956,1733796632357,-175.0,0.00023014,2]
[344806958,1733796632367,-159.263537,0.00023561,2]
[344806960,1733796632377,-177.052948,0.0002357,2]
[344806962,1733796632387,-729.098,0.0002374,2]
[344806964,1733796632397,-300.0,0.00023909,2]
[344806966,1733796632407,-300.0,0.00023909,2]
[344806968,1733796632417,-8843.6917358,0.0002391,2]
[344806969,1733796632426,-779.48491406,0.00023953,2]
[344806970,1733796632438,-15550.63066576,0.00023953,2]
[344806976,1733796638454,-369.99999999,0.00023953,2]
[344807057,1733796640623,-177.0,0.00024164,2]
[344807059,1733796640633,-8843.6917358,0.00024256,2]
[344807061,1733796640643,-153.0,0.00024274,2]
[344807063,1733796640653,-8843.6917358,0.00024462,2]
[344807065,1733796640663,-158.51754276,0.00024701,2]
[344807067,1733796640672,-351.1524441,0.0002474,2]
[344807069,1733796640682,-351.1524441,0.0002474,2]
[344807071,1733796640691,-351.1524441,0.0002474,2]
[344807073,1733796640700,-351.1524441,0.0002474,2]
[344807075,1733796640710,-8843.6917358,0.00024837,2]
[344807077,1733796640719,-752.95900797,0.00024898,2]
[344807079,1733796640729,-500.0,0.00024973,2]
[344807081,1733796640738,-503.84029831,0.00024973,2]
[344807083,1733796640747,-500.0,0.00024973,2]
[344807085,1733796640756,-178.64328103,0.00024973,2]
[344807087,1733796640766,-630.97379825,0.00024973,2]
[344807089,1733796640775,-151.0,0.00024997,7]
[344807091,1733796640784,-157.613882,0.00024997,7]
[344807093,1733796640794,-153.802458,0.00024997,7]
[344807095,1733796640803,-155.007212,0.00024997,7]
[344807097,1733796640813,-212.115944,0.00024997,7]
[344807099,1733796640824,-151.0,0.00024997,7]
[344807102,1733796640834,-151.0,0.00024997,7]
[344807104,1733796640845,-290.67704,0.00024997,7]
[344807106,1733796640855,-151.0,0.00024997,7]
[344807108,1733796640865,-598.494992,0.00024997,7]